bitfinex-derivatives/quotes_SOLF0:USTF0_20250823
["timestamp","ask_amount","ask_price","bid_price","bid_amount"]
[1755966605476,2.54,203.18,203.16,6.83197568]
[1755966605674,2.54,203.18,203.15,2.83]
[1755966605875,2.54,203.18,203.16,6.8319411]
[1755966606070,2.54,203.18,203.15,2.83]
[1755966606272,121.74,203.19,203.17,4.9234]
[1755966606473,121.74,203.19,203.17,7.7534]
[1755966606974,121.74,203.19,203.18,2.83]
[1755966607373,2.54,203.21,203.19,4.9231]
[1755966607574,2.54,203.2,203.19,4.9231]
[1755966608466,2.54,203.19,203.12,120.40947512]
[1755966608673,5.08165861,203.18,203.13,11.26044184]
[1755966608877,2.54,203.16,203.14,11.26066271]
[1755966609078,121.72,203.17,203.12,117.57947512]
[1755966609268,124.26,203.17,203.14,2.83]
[1755966609673,124.26,203.17,203.15,4.9239]
[1755966610074,121.72,203.17,203.15,4.9239]
[1755966610283,2.54,203.16,203.15,4.9239]
[1755966612273,2.54,203.16,203.12,117.57947512]
[1755966612480,2.54,203.15,203.12,117.57947512]
[1755966612675,2.54,203.14,203.12,117.57947512]
[1755966613284,2.54,203.14,203.12,122.50407512]
[1755966614285,2.54,203.16,203.13,4.79750366]
[1755966614481,2.54,203.15,203.12,122.50407512]
[1755966614682,2.54,203.15,203.13,4.7980061]
[1755966614878,2.54,203.15,203.12,122.50407512]
[1755966615076,2.54,203.15,203.13,4.7980061]
[1755966615280,2.54,203.15,203.12,122.50407512]
[1755966615475,2.54,203.15,203.12,125.33407512]
[1755966615676,121.72,203.17,203.13,7.7544]
[1755966615877,121.72,203.17,203.14,14.09255875]
[1755966616077,121.72,203.17,203.15,4.79779536]
[1755966616285,121.72,203.17,203.13,2.83]
[1755966616482,121.72,203.17,203.15,2.83]
[1755966616689,121.72,203.17,203.16,2.83]
[1755966617682,121.72,203.17,203.16,7.62739672]
[1755966617989,121.7,203.22,203.16,14.09052979]
[1755966618191,121.7,203.22,203.16,2.83]
[1755966618688,124.24,203.22,203.19,4.9229]
[1755966619085,124.24,203.22,203.19,7.7529]
[1755966619282,2.54,203.24,203.21,2.83]
[1755966620090,2.54,203.23,203.17,2.83]
[1755966620287,2.54,203.23,203.19,2.83]
[1755966620689,2.54,203.23,203.2,2.83]
[1755966620987,121.7,203.25,203.14,2.83]
[1755966620988,2.54,203.24,203.14,2.83]
[1755966621183,2.54,203.24,203.15,11.25836993]
[1755966621388,2.54,203.24,203.16,11.25836993]
[1755966621686,2.54,203.24,203.17,11.25836993]
[1755966621886,2.54,203.24,203.14,2.83]
[1755966622088,2.54,203.24,203.15,11.289198]
[1755966622283,2.54,203.24,203.16,11.289198]
[1755966622489,2.54,203.24,203.17,16.212698]
[1755966622685,2.54,203.24,203.18,6.85782431]
[1755966622886,2.54,203.24,203.19,4.82862917]
[1755966623084,2.54,203.24,203.17,4.9235]
[1755966623085,2.54,203.23,203.17,4.9235]
[1755966623284,2.54,203.22,203.18,14.13194008]
[1755966623493,2.54,203.21,203.19,6.86556419]
[1755966623691,2.54,203.21,203.18,2.83]
[1755966623886,2.54,203.24,203.19,6.86520078]
[1755966624090,2.54,203.21,203.18,2.83]
[1755966624389,179.79139477,203.28,203.2,2.83]
[1755966624390,296.05294649,203.28,203.2,2.83]
[1755966624591,296.05294649,203.28,203.21,11.3004382]
[1755966624893,296.05294649,203.28,203.22,11.3004382]
[1755966625194,2.54,203.26,203.21,4.9224]
[1755966625396,2.54,203.25,203.22,19.04339678]
[1755966625597,2.54,203.27,203.23,7.65949696]
[1755966625900,2.54,203.26,203.23,2.83]
[1755966627796,2.53,203.25,203.2,4.9227]
[1755966627999,2.53,203.25,203.13,2.83]
[1755966628201,2.53,203.25,203.15,2.83]
[1755966628398,2.53,203.25,203.16,11.29100328]
[1755966628700,7.4518,203.25,203.18,4.9232]
[1755966629603,2.53,203.24,203.18,4.9232]
[1755966629809,2.53,203.22,203.18,4.9232]
[1755966630098,2.53,203.22,203.18,7.7532]
[1755966630501,2.53,203.21,203.18,7.7532]
[1755966630802,2.53,203.21,203.19,4.83213961]
[1755966630995,2.53,203.21,203.18,7.7532]
[1755966631201,2.53,203.21,203.19,4.83365527]
[1755966631400,121.64,203.22,203.18,4.9232]
[1755966631701,121.64,203.22,203.2,2.83]
[1755966631898,121.64,203.22,203.13,2.83]
[1755966632107,121.64,203.22,203.14,11.28119156]
[1755966632296,121.64,203.22,203.15,14.11119156]
[1755966632502,121.64,203.22,203.16,16.20534067]
[1755966632802,121.64,203.22,203.18,2.83]
[1755966633101,2.53,203.21,203.18,2.83]
[1755966633498,124.18,203.22,203.16,4.9237]
[1755966633697,2.54,203.21,203.17,11.28420412]
[1755966633893,2.54,203.2,203.18,4.84225969]
[1755966634101,2.54,203.2,203.17,4.9234]
[1755966634403,2.54,203.2,203.18,4.84221036]
[1755966634602,2.54,203.2,203.17,4.9234]
[1755966634797,2.54,203.2,203.18,4.84194987]
[1755966635001,2.54,203.2,203.17,4.9234]
[1755966635198,121.64,203.22,203.18,4.84233766]
[1755966635406,2.54,203.21,203.12,120.19947512]
[1755966635596,2.54,203.21,203.14,2.62]
[1755966635802,2.54,203.21,203.15,4.8430882]
[1755966636001,2.54,203.21,203.14,2.62]
[1755966636204,2.54,203.21,203.15,6.87842412]
[1755966636405,124.16,203.2,203.16,9.49842412]
[1755966636609,2.54,203.19,203.16,2.62]
[1755966637307,2.54,203.19,203.17,4.84314873]
[1755966637504,2.54,203.19,203.16,7.5436]
[1755966637803,2.54,203.19,203.17,4.84314873]
[1755966638111,2.54,203.19,203.16,7.5436]
[1755966638112,7.4617,203.25,203.13,24.6226]
[1755966638311,121.62,203.24,203.15,2.62]
[1755966638610,121.62,203.24,203.16,11.28632424]
[1755966638805,121.62,203.24,203.17,2.03531351]
[1755966639002,121.62,203.24,203.18,4.84241818]
[1755966639206,2.54,203.23,203.19,7.5429]
[1755966639711,121.62,203.24,203.19,4.9229]
[1755966639905,2.54,203.23,203.19,7.5429]
[1755966640508,124.16,203.24,203.21,2.62]
[1755966640709,124.16,203.24,203.2,4.9227]
[1755966641017,2.54,203.23,203.13,2.62]
[1755966641202,2.54,203.23,203.14,11.28795584]
[1755966641401,2.54,203.23,203.15,11.28795584]
[1755966641706,2.54,203.22,203.16,11.80317457]
[1755966641906,2.54,203.21,203.17,4.84386491]
[1755966642112,2.54,203.2,203.16,7.5437]
[1755966642319,2.54,203.2,203.17,4.8439684]
[1755966642614,2.54,203.22,203.16,7.5437]
[1755966642814,2.54,203.22,203.17,4.84412703]
[1755966643004,2.54,203.22,203.16,7.5437]
[1755966643208,121.6,203.21,203.17,11.80312495]
[1755966643415,121.6,203.21,203.18,9.49972495]
[1755966643608,121.6,203.21,203.13,24.6225]
[1755966643810,121.6,203.21,203.19,2.62]
[1755966644015,121.6,203.21,203.15,2.62]
[1755966644219,121.6,203.21,203.17,2.62]
[1755966644515,121.6,203.21,203.18,9.49935989]
[1755966644818,121.6,203.21,203.18,2.62]
[1755966645410,2.54,203.2,203.16,4.9236]
[1755966645713,121.6,203.21,203.17,4.84393064]
[1755966645916,2.54,203.2,203.13,2.62]
[1755966646210,2.54,203.2,203.14,11.28873983]
[1755966646411,2.54,203.2,203.15,4.84420181]
[1755966646611,2.54,203.2,203.12,117.57947512]
[1755966646811,2.54,203.2,203.13,11.2900585]
[1755966647010,2.54,203.2,203.14,6.88076226]
[1755966647213,2.54,203.2,203.15,4.84476151]
[1755966647415,2.54,203.2,203.12,117.57947512]
[1755966647616,4.9232,203.19,203.13,11.28930713]
[1755966647918,2.54,203.17,203.14,6.88030434]
[1755966648112,2.54,203.16,203.15,4.84443908]
[1755966648311,2.54,203.16,203.13,4.9244]
[1755966648613,2.54,203.16,203.14,4.84420955]
[1755966648813,2.54,203.16,203.13,4.9244]
[1755966649007,2.54,203.16,203.14,9.76831106]
[1755966649211,2.54,203.16,203.14,4.9241]
[1755966651117,7.463,203.2,203.14,4.9241]
[1755966651817,2.54,203.19,203.15,4.9239]
[1755966652019,121.6,203.18,203.15,4.9239]
[1755966652320,2.54,203.17,203.15,4.9239]
[1755966652612,10.47844828,203.17,203.09,2.62]
[1755966652814,2.54,203.16,203.09,2.62]
[1755966654514,4.9241,203.15,203.09,7.5453]
[1755966654918,2.54,203.13,203.09,4.9253]
[1755966655119,2.54,203.12,203.09,4.9253]
[1755966657619,2.54,203.12,203.08,2.62]
[1755966658420,2.54,203.12,203.09,4.9254]
[1755966658717,15.40214828,203.17,203.06,2.62]
[1755966659114,15.40214828,203.17,203.07,4.81275116]
[1755966659311,15.40214828,203.17,203.08,2.62]
[1755966659921,15.40214828,203.17,203.1,4.9251]
[1755966660219,2.54,203.22,203.11,2.62]
[1755966660413,124.14,203.22,203.12,6.84196664]
[1755966660616,124.14,203.22,203.13,2.62]
[1755966660820,124.14,203.22,203.17,4.9235]
[1755966661024,2.54,203.21,203.13,2.62]
[1755966662017,7.4627,203.21,203.14,4.9242]
[1755966662219,7.4627,203.21,203.13,2.62]
[1755966662415,2.54,203.21,203.13,2.62]
[1755966662717,2.54,203.21,203.16,4.9236]
[1755966662915,121.6,203.22,203.16,4.9236]
[1755966662916,2.54,203.19,203.16,4.9236]
[1755966664423,2.55,203.18,203.14,7.5542]
[1755966664613,2.55,203.21,203.09,2.63]
[1755966664814,121.6,203.22,203.1,11.24005046]
[1755966664815,12.86164828,203.19,203.1,11.24005046]
[1755966665013,2.55,203.18,203.09,2.63]
[1755966665218,2.55,203.18,203.1,6.84240077]
[1755966665423,2.55,203.18,203.09,2.63]
[1755966665626,2.55,203.18,203.1,6.84210374]
[1755966665925,2.55,203.18,203.09,2.63]
[1755966666121,2.55,203.18,203.1,6.84210374]
[1755966666323,2.55,203.18,203.09,7.5554]
[1755966666525,2.55,203.18,203.09,2.63]
[1755966667125,2.55,203.18,203.1,4.81042155]
[1755966667331,2.55,203.18,203.09,2.63]
[1755966667523,121.58,203.17,203.12,2.63]
[1755966667926,2.55,203.15,203.09,2.63]
[1755966668123,2.55,203.15,203.1,9.47116283]
[1755966668327,2.55,203.15,203.1,2.63]
[1755966668527,2.55,203.15,203.11,2.63]
[1755966669226,2.55,203.14,203.08,2.63]
[1755966669427,2.55,203.15,203.09,11.23869329]
[1755966669727,2.55,203.15,203.08,2.63]
[1755966669930,2.55,203.15,203.09,11.76648145]
[1755966670122,2.55,203.15,203.09,4.9253]
[1755966671331,2.55,203.15,203.1,4.81152436]
[1755966671532,2.55,203.15,203.11,2.63]
[1755966671827,129.51844828,203.16,203.12,2.63]
[1755966672030,132.06844828,203.16,203.12,2.63]
[1755966672230,129.51844828,203.16,203.13,2.63]
[1755966672428,129.51844828,203.16,203.12,4.9246]
[1755966672633,121.58,203.16,203.13,2.63]
[1755966672928,121.58,203.16,203.14,4.9241]
[1755966673134,121.58,203.17,203.15,2.63]
[1755966673336,121.58,203.17,203.16,2.63]
[1755966674627,4.9239,203.16,203.07,2.63]
[1755966674830,2.55,203.15,203.08,6.84361612]
[1755966675031,2.55,203.15,203.09,9.4754148]
[1755966675339,2.55,203.15,203.09,2.63]
[1755966675840,2.55,203.15,203.06,2.63]
[1755966675841,10.48844828,203.15,203.06,2.63]
[1755966676142,10.48844828,203.15,203.07,4.81423064]
[1755966676342,10.48844828,203.15,203.06,2.63]
[1755966676540,10.48844828,203.15,203.07,4.81394884]
[1755966676838,121.58,203.14,203.06,2.63]
[1755966677133,121.58,203.14,203.07,9.2153981]
[1755966677333,2.55,203.1,203.03,2.63]
[1755966677532,2.55,203.1,203.04,11.15937679]
[1755966677838,2.55,203.1,203.05,13.78937679]
[1755966678041,2.55,203.1,203.06,11.15937679]
[1755966678240,2.55,203.1,203.07,4.81373253]
[1755966678539,2.55,203.1,203.05,2.63]
[1755966678738,2.55,203.1,203.06,11.15346443]
[1755966678930,2.55,203.1,203.07,4.81345669]
[1755966679130,2.55,203.1,203.05,2.63]
[1755966679330,2.55,203.1,203.06,9.21439678]
[1755966679535,2.55,203.1,203.07,4.81345668]
[1755966679738,2.55,203.1,203.05,2.63]
[1755966679939,2.55,203.1,203.06,9.21391767]
[1755966680136,2.55,203.1,203.05,2.63]
[1755966680137,2.55,203.1,203.07,4.8132064]
[1755966680336,2.55,203.1,203.04,4.9266]
[1755966680535,10.48844828,203.07,202.99,2.63]
[1755966680737,132.06844828,203.07,203.0,11.15359277]
[1755966680934,132.06844828,203.07,203.01,11.15359277]
[1755966681135,2.55,203.06,203.02,11.84447073]
[1755966681333,2.55,203.05,203.03,4.81349607]
[1755966681536,2.55,203.05,202.99,7.5577]
[1755966681738,2.55,203.05,203.01,2.63]
[1755966681935,2.55,203.05,203.02,9.21137307]
[1755966682138,2.55,203.05,203.03,9.21137307]
[1755966682339,2.55,203.05,203.01,2.63]
[1755966682534,2.55,203.05,203.02,11.13730123]
[1755966682737,2.55,203.05,203.03,9.19936848]
[1755966682940,129.51844828,203.07,203.03,2.63]
[1755966683139,129.51844828,203.07,203.04,2.63]
[1755966683342,132.06844828,203.07,203.04,2.63]
[1755966683544,132.06844828,203.07,203.01,2.63]
[1755966683745,132.06844828,203.07,203.02,11.13508005]
[1755966683937,132.06844828,203.07,203.03,7.43015387]
[1755966684140,132.06844828,203.07,203.03,2.63]
[1755966685346,2.55,203.06,203.03,2.63]
[1755966685542,2.55,203.06,203.02,7.557]
[1755966685743,2.55,203.06,203.03,4.79945413]
[1755966685947,2.55,203.06,203.02,7.557]
[1755966686247,2.55,203.06,203.03,4.79945413]
[1755966686546,2.55,203.06,203.02,7.557]
[1755966686746,2.55,203.06,203.03,4.79890783]
[1755966686947,2.55,203.06,203.02,7.557]
[1755966687347,2.55,203.06,203.03,2.63]
[1755966688849,129.51844828,203.07,203.03,2.63]
[1755966689046,132.05844828,203.07,203.03,2.63]
[1755966689551,2.54,203.06,202.93,2.63]
[1755966689749,7.93844828,203.03,202.95,2.63]
[1755966689950,121.6,203.02,202.96,11.13409383]
[1755966690152,121.6,203.02,202.97,11.13409383]
[1755966690348,2.54,203.0,202.98,11.13409383]
[1755966690546,2.54,203.0,202.99,9.19668198]
[1755966690746,2.54,203.0,202.99,4.79971007]
[1755966691253,2.54,203.0,202.95,4.9289]
[1755966691446,2.54,203.0,202.96,13.76071747]
[1755966691647,2.54,203.0,202.97,9.19383081]
[1755966691949,2.54,203.0,202.96,2.63]
[1755966692154,121.6,203.02,202.96,2.63]
[1755966692447,2.54,202.99,202.93,7.5593]
[1755966692651,2.54,202.97,202.94,4.79671482]
[1755966692852,124.16,202.97,202.91,2.63]
[1755966693052,124.16,202.97,202.92,13.75792805]
[1755966693254,2.54,202.96,202.93,4.79716124]
[1755966693456,2.54,202.96,202.92,2.63]
[1755966693654,2.55,202.95,202.93,4.79397508]
[1755966693959,2.55,202.95,202.92,2.63]
[1755966693960,121.62,202.97,202.92,2.63]
[1755966694154,121.62,202.97,202.93,2.69]
[1755966694155,124.17,202.97,202.93,2.69]
[1755966695458,121.62,202.97,202.93,2.69]
[1755966695660,2.55,202.96,202.93,2.69]
[1755966701764,121.62,202.97,202.93,2.69]
[1755966701954,124.17,202.97,202.93,2.69]
[1755966702152,124.17,202.97,202.93,7.6192]
[1755966702351,4.9277,203.0,202.89,2.69]
[1755966702352,121.64,202.96,202.89,2.69]
[1755966702551,121.64,202.96,202.88,24.6531]
[1755966702756,7.93844828,203.0,202.91,2.69]
[1755966702757,121.64,202.97,202.91,2.69]
[1755966704268,7.93844828,203.0,202.91,2.69]
[1755966704468,121.64,202.99,202.91,2.69]
[1755966704667,7.93844828,203.0,202.91,2.69]
[1755966704867,121.64,202.99,202.91,2.69]
[1755966705465,2.55,203.06,202.92,4.77515879]
[1755966705664,124.19,203.05,202.94,2.69]
[1755966705863,2.55,203.04,202.98,4.9279]
[1755966712464,2.55,203.04,203.01,2.69]
[1755966712662,121.64,203.05,202.96,2.69]
[1755966712865,121.64,203.05,202.98,2.69]
[1755966713673,121.64,203.05,202.95,24.6437]
[1755966713674,124.19,203.05,203.01,7.6172]
[1755966714572,2.55,203.04,203.01,7.6172]
[1755966715274,121.64,203.05,203.01,4.9272]
[1755966715475,124.19,203.05,203.01,7.6172]
[1755966715670,2.55,203.04,202.96,2.69]
[1755966716079,2.55,203.04,202.97,4.80911605]
[1755966716375,2.55,203.04,202.98,4.928]
[1755966716674,2.55,203.04,202.96,2.69]
[1755966716869,2.55,203.04,203.0,4.9275]
[1755966717074,121.6,203.03,203.0,7.6175]
[1755966717667,124.15,203.03,203.0,7.6175]
[1755966719173,2.55,203.02,202.98,4.928]
[1755966719479,2.55,203.02,202.98,7.618]
[1755966720579,2.55,203.02,202.99,2.69]
[1755966721579,2.55,203.02,202.98,7.618]
[1755966722079,2.55,203.02,202.98,4.928]
[1755966722380,121.58,203.03,202.99,2.69]
[1755966722579,124.13,203.03,202.99,4.9277]
[1755966722782,124.13,203.03,203.0,2.69]
[1755966724183,121.58,203.03,203.01,2.65]
[1755966724480,124.12,203.03,202.97,2.65]
[1755966724681,121.58,203.03,202.97,2.65]
[1755966725074,2.54,203.01,202.98,2.65]
[1755966725573,2.54,203.01,202.98,7.578]
[1755966725770,121.58,203.03,202.98,4.928]
[1755966726180,2.54,203.01,202.98,4.928]
[1755966728074,2.54,203.01,202.98,7.578]
[1755966728470,2.54,203.01,202.99,4.9278]
[1755966728779,2.54,203.01,202.95,24.6444]
[1755966728780,121.56,203.03,202.96,2.65]
[1755966728981,121.56,203.03,202.97,11.19787972]
[1755966729180,121.56,203.03,202.99,2.65]
[1755966729380,124.1,203.03,202.99,2.65]
[1755966729575,121.56,203.03,202.96,2.65]
[1755966729772,4.9256,203.09,202.95,24.6444]
[1755966729773,124.1,203.06,202.98,2.65]
[1755966729972,124.1,203.06,202.99,4.83085099]
[1755966730172,124.1,203.06,203.0,7.48085099]
[1755966730377,121.56,203.06,203.02,2.65]
[1755966730676,121.56,203.06,203.03,2.65]
[1755966730873,121.56,203.06,203.04,4.9265]
[1755966731178,121.56,203.08,203.05,2.65]
[1755966731378,121.56,203.08,202.99,24.6396]
[1755966731574,2.54,203.07,203.03,2.65]
[1755966732478,2.54,203.07,203.05,4.9263]
[1755966732884,12.86354828,203.11,203.0,24.6383]
[1755966732885,10.47844828,203.11,203.0,2.65]
[1755966733087,121.54,203.1,203.02,2.65]
[1755966733385,10.47844828,203.11,203.01,11.19721278]
[1755966733386,10.47844828,203.11,203.04,2.65]
[1755966733589,2.54,203.11,203.06,2.65]
[1755966733788,2.54,203.11,203.07,7.47987502]
[1755966733984,2.54,203.11,203.07,2.65]
[1755966734585,2.54,203.11,203.09,4.9253]
[1755966735187,121.54,203.12,203.1,4.9251]
[1755966735486,121.54,203.12,203.1,7.5751]
[1755966735875,185.45045519,203.15,203.1,7.5751]
[1755966735876,2.54,203.14,203.1,7.5751]
[1755966736483,2.54,203.13,203.1,4.9251]
[1755966736783,2.54,203.14,203.1,4.9251]
[1755966736988,2.54,203.13,203.1,4.9251]
[1755966738690,2.54,203.13,203.07,2.65]
[1755966738691,2.54,203.13,203.08,4.9256]
[1755966738993,2.54,203.14,203.08,4.9256]
[1755966739191,2.54,203.14,203.09,4.9253]
[1755966739490,182.91045519,203.15,203.09,4.9253]
[1755966739791,2.54,203.12,203.09,4.9253]
[1755966740784,121.52,203.14,203.09,4.9253]
[1755966740991,2.54,203.11,203.09,4.9253]
[1755966741289,2.54,203.13,203.04,2.65]
[1755966741985,2.54,203.13,203.03,4.9269]
[1755966742187,2.54,203.09,203.03,4.9269]
[1755966742491,2.54,203.07,203.03,4.9269]
[1755966742693,2.54,203.05,203.01,7.5773]
[1755966743395,2.54,203.05,203.02,2.65]
[1755966743895,2.54,203.07,202.98,2.65]
[1755966745291,2.54,203.07,202.99,24.6395]
[1755966745498,121.5,203.08,203.0,2.65]
[1755966745997,121.48,203.08,203.0,2.65]
[1755966746294,124.02,203.08,203.0,2.65]
[1755966747194,124.02,203.08,203.05,4.9263]
[1755966747390,2.54,203.07,203.05,4.9263]
[1755966750490,121.48,203.08,203.05,7.5763]
[1755966750997,124.02,203.08,203.05,7.5763]
[1755966751693,121.48,203.08,203.05,4.9263]
[1755966751894,121.48,203.08,203.06,2.65]
[1755966752494,2.54,203.07,203.05,4.9263]
[1755966753100,2.54,203.07,202.99,24.6395]
[1755966753397,121.48,203.08,203.01,2.65]
[1755966753602,7.93844828,203.09,203.02,6.75446413]
[1755966753799,124.02,203.08,203.04,2.78]
[1755966754699,124.02,203.08,203.05,4.9263]
[1755966754999,2.54,203.07,203.05,4.9263]
[1755966759705,2.54,203.07,203.05,7.7063]
[1755966759906,121.46,203.08,203.05,7.7063]
[1755966760106,124.0,203.08,203.05,7.7063]
[1755966761110,2.54,203.07,203.05,7.7063]
[1755966761509,124.0,203.07,203.05,7.7063]
[1755966761913,124.0,203.07,203.03,4.9268]
[1755966762109,124.0,203.07,203.04,2.78]
[1755966763012,2.54,203.07,203.04,2.78]
[1755966763212,121.44,203.06,203.04,2.78]
[1755966763415,2.54,203.06,203.03,4.9268]
[1755966763713,2.54,203.06,203.03,7.7068]
[1755966763913,121.44,203.07,203.03,7.7068]
[1755966764314,2.54,203.05,203.03,7.7068]
[1755966764510,2.54,203.04,203.01,4.9273]
[1755966764709,121.44,203.07,203.02,4.80784297]
[1755966765015,2.54,203.03,203.01,4.9273]
[1755966765211,2.54,203.06,203.02,4.80784297]
[1755966765415,2.54,203.06,203.01,4.9273]
[1755966765416,121.44,203.07,203.01,4.9273]
[1755966765615,2.54,203.04,203.02,4.8080736]
[1755966765812,2.54,203.04,203.01,7.7073]
[1755966766013,2.54,203.04,203.02,4.8080736]
[1755966766313,2.54,203.04,203.01,7.7073]
[1755966766513,2.54,203.04,203.02,4.80829718]
[1755966766709,2.54,203.04,203.01,7.7073]
[1755966767017,2.54,203.04,203.02,4.80857427]
[1755966767214,2.54,203.04,203.02,4.927]
[1755966768018,123.98,203.07,203.02,7.707]
[1755966768220,2.54,203.06,203.02,7.707]
[1755966768719,2.54,203.05,203.02,7.707]
[1755966770419,2.54,203.05,203.03,4.9268]
[1755966770720,121.44,203.07,202.99,2.78]
[1755966770919,121.44,203.07,203.01,2.78]
[1755966771122,121.44,203.07,203.03,2.78]
[1755966771123,123.98,203.07,203.03,2.78]
[1755966771321,2.54,203.09,203.06,2.78]
[1755966771620,121.42,203.08,203.05,4.9263]
[1755966771820,123.96,203.08,203.05,4.9263]
[1755966772015,123.96,203.08,203.06,4.9261]
[1755966772916,2.54,203.07,203.06,4.9261]
[1755966773317,123.96,203.07,203.06,4.9261]
[1755966774015,123.96,203.07,203.04,4.9266]
[1755966774222,2.54,203.06,203.04,4.9266]
[1755966775126,7.93844828,203.1,203.02,4.9271]
[1755966775328,2.54,203.09,203.03,4.80560367]
[1755966775529,2.54,203.08,203.02,4.9271]
[1755966775721,2.54,203.08,203.03,4.80573721]
[1755966775920,2.54,203.06,203.02,4.9271]
[1755966776124,121.42,203.09,203.03,4.80573721]
[1755966776323,2.54,203.04,203.02,4.9271]
[1755966776527,2.54,203.04,203.03,4.80571353]
[1755966777027,2.54,203.04,203.02,4.9271]
[1755966777228,2.54,203.04,203.03,4.80571353]
[1755966778235,4.9258,203.08,203.03,4.80571353]
[1755966778431,2.54,203.06,203.03,4.9268]
[1755966779128,2.54,203.07,203.03,4.9268]
[1755966779328,2.54,203.06,203.03,4.9268]
[1755966780326,2.54,203.05,203.03,4.9268]
[1755966780834,2.54,203.05,203.03,7.7068]
[1755966782232,7.4658,203.08,203.03,7.7068]
[1755966782435,2.54,203.06,203.03,7.7068]
[1755966782735,121.4,203.07,203.05,2.78]
[1755966783730,2.54,203.09,203.06,2.55]
[1755966783936,121.38,203.08,203.06,2.55]
[1755966784342,121.38,203.08,203.07,2.55]
[1755966784831,121.38,203.08,203.07,7.35945802]
[1755966785035,123.92,203.12,203.08,2.55]
[1755966785237,123.92,203.12,203.03,2.55]
[1755966785436,123.92,203.12,203.05,2.55]
[1755966785636,123.92,203.12,203.06,6.7566489]
[1755966785837,2.54,203.11,203.07,7.36034627]
[1755966786035,2.54,203.1,203.04,2.55]
[1755966786234,2.54,203.11,203.05,6.75791635]
[1755966786435,2.54,203.1,203.06,9.30791635]
[1755966786632,2.54,203.1,203.07,4.8116161]
[1755966786932,2.54,203.1,203.06,2.55]
[1755966787137,2.54,203.1,203.07,4.81112255]
[1755966787338,2.54,203.1,203.07,2.55]
[1755966787640,2.54,203.1,203.07,7.4758]
[1755966787832,121.38,203.11,203.09,2.55]
[1755966788035,121.38,203.12,203.09,2.55]
[1755966788237,121.38,203.12,203.09,7.4753]
[1755966788943,123.92,203.12,203.09,7.4753]
[1755966789243,121.38,203.12,203.1,2.55]
[1755966789544,121.38,203.12,203.07,7.4759]
[1755966789841,2.54,203.1,203.07,7.4759]
[1755966790041,2.54,203.1,203.08,7.35871297]
[1755966790241,123.92,203.12,203.08,7.4756]
[1755966790442,123.92,203.12,203.09,2.55]
[1755966790842,123.92,203.12,203.1,2.55]
[1755966791036,123.92,203.12,203.09,7.4753]